fUSD/lending_fUSD_20250105
["ID","MTS","AMOUNT","RATE_DAILY","PERIOD"]
[347752682,1736093497445,-672.42,0.0001178,2]
[347752683,1736093497456,-727.18,0.0001178,2]
[347752684,1736093497466,-567.84,0.0001178,2]
[347752685,1736093497476,-500.0,0.0001178,2]
[347752686,1736093497486,-552.49,0.0001178,2]
[347752687,1736093497498,-764.16,0.0001178,2]
[347752688,1736093497679,-1325.59,0.0001178,2]
[347752689,1736093497689,-543.8,0.0001178,2]
[347752690,1736093497699,-681.31,0.0001178,2]
[347752691,1736093497709,-643.31,0.0001178,2]
[347752692,1736093497718,-1100.99,0.0001178,2]
[347752693,1736093497728,-554.91,0.0001178,2]
[347752694,1736093497739,-572.41,0.0001178,2]
[347752695,1736093497748,-980.48,0.0001178,2]
[347752696,1736093497759,-578.15,0.0001178,2]
[347752697,1736093497769,-631.99,0.0001178,2]
[347752698,1736093497779,-1267.42,0.0001178,2]
[347752699,1736093497788,-680.55,0.0001178,2]
[347752700,1736093497799,-906.26,0.0001178,2]
[347752701,1736093497809,-3974.11,0.0001178,2]
[347752702,1736093497819,-500.0,0.0001178,2]
[347752703,1736093497828,-500.0,0.0001178,2]
[347752704,1736093497837,-809.64,0.0001178,2]
[347752705,1736093497847,-1573.57,0.0001178,2]
[347752706,1736093497858,-703.17,0.0001178,2]
[347752707,1736093497867,-500.0,0.0001178,2]
[347752708,1736093497877,-591.69,0.0001178,2]
[347752709,1736093497888,-1135.97,0.0001178,2]
[347752710,1736093497897,-520.01,0.0001178,2]
[347752711,1736093497909,-1452.66,0.0001178,2]
[347752712,1736093497918,-602.76,0.0001178,2]
[347752713,1736093497928,-1808.46,0.0001178,2]
[347752714,1736093497938,-833.46,0.0001178,2]
[347752715,1736093497947,-618.53,0.0001178,2]
[347752716,1736093497958,-651.97,0.0001178,2]
[347752717,1736093497969,-911.74,0.0001178,2]
[347752718,1736093497979,-568.0,0.0001178,2]
[347752719,1736093497989,-1028.15,0.0001178,2]
[347752720,1736093497999,-721.89,0.0001178,2]
[347752721,1736093498009,-1575.34,0.0001178,2]
[347752722,1736093498018,-633.58,0.0001178,2]
[347752723,1736093498028,-500.0,0.0001178,2]
[347752724,1736093498037,-1378.57,0.0001178,2]
[347752725,1736093498047,-500.0,0.0001178,2]
[347752726,1736093498057,-675.6,0.0001178,2]
[347752727,1736093498066,-790.0,0.0001178,2]
[347752728,1736093498076,-3107.24,0.0001178,2]
[347752729,1736093498087,-747.11,0.0001178,2]
[347752730,1736093498097,-1312.45,0.0001178,2]
[347752731,1736093498107,-2431.88,0.0001178,2]
[347752732,1736093498117,-660.9,0.0001178,2]
[347752733,1736093498127,-741.89,0.0001178,2]
[347752734,1736093498136,-500.0,0.0001178,2]
[347752735,1736093498147,-998.2,0.0001178,2]
[347752736,1736093498158,-742.57,0.0001178,2]
[347752737,1736093498167,-950.19,0.0001178,2]
[347752738,1736093498179,-1502.24,0.0001178,2]
[347752739,1736093498190,-545.49,0.0001178,2]
[347752740,1736093498200,-775.67,0.0001178,2]
[347752741,1736093498209,-1529.57,0.0001178,2]
[347752742,1736093498219,-829.09,0.0001178,2]
[347752743,1736093498229,-851.4,0.0001178,2]
[347752744,1736093498239,-643.9,0.0001178,2]
[347752745,1736093498248,-596.39,0.0001178,2]
[347752746,1736093498258,-2401.07,0.0001178,2]
[347752747,1736093498268,-1972.78,0.0001178,2]
[347752748,1736093498278,-500.0,0.0001178,2]
[347752749,1736093498287,-7216.14,0.0001178,2]
[347752750,1736093498296,-4809.85,0.0001178,2]
[347752751,1736093498307,-664.2,0.0001178,2]
[347752752,1736093498317,-1336.17,0.0001178,2]
[347752753,1736093498326,-2680.26,0.0001178,2]
[347752754,1736093498336,-4510.33,0.0001178,2]
[347752755,1736093498346,-897.44,0.0001178,2]
[347752756,1736093498356,-514.62,0.0001178,2]
[347752757,1736093498366,-863.94,0.0001178,2]
[347752758,1736093498375,-845.14,0.0001178,2]
[347752759,1736093498384,-2020.86,0.0001178,2]
[347752760,1736093498394,-1165.06,0.0001178,2]
[347752761,1736093498403,-898.28,0.0001178,2]
[347752762,1736093498412,-682.97,0.0001178,2]
[347752763,1736093498422,-4822.3,0.0001178,2]
[347752764,1736093498432,-820.85,0.0001178,2]
[347752765,1736093498442,-730.9,0.0001178,2]
[347752766,1736093498452,-2567.67,0.0001178,2]
[347752767,1736093498463,-905.94,0.0001178,2]
[347752768,1736093498475,-1978.57,0.0001178,2]
[347752769,1736093498485,-924.98,0.0001178,2]
[347752770,1736093498497,-730.86,0.0001178,2]
[347752771,1736093498507,-1891.01,0.0001178,2]
[347752772,1736093498516,-923.16,0.0001178,2]
[347752773,1736093498526,-1979.73,0.0001178,2]
[347752774,1736093498536,-1008.74,0.0001178,2]
[347752775,1736093498546,-5323.99,0.0001178,2]
[347752776,1736093498556,-654.82,0.0001178,2]
[347752777,1736093498566,-634.71,0.0001178,2]
[347752778,1736093498577,-910.23,0.0001178,2]
[347752779,1736093498587,-1030.31,0.0001178,2]
[347752780,1736093498596,-599.32,0.0001178,2]
[347752781,1736093498606,-6129.68,0.0001178,2]
[347752782,1736093498615,-3801.67,0.0001178,2]
[347752783,1736093498625,-500.0,0.0001178,2]
[347752784,1736093498635,-1038.71,0.0001178,2]
[347752785,1736093498647,-2739.97,0.0001178,2]
[347752786,1736093498658,-2105.78,0.0001178,2]
[347752787,1736093498668,-1877.63,0.0001178,2]
[347752788,1736093498678,-1306.48,0.0001178,2]
[347752789,1736093498688,-700.64,0.0001178,2]
[347752790,1736093498698,-1166.76,0.0001178,2]
[347752791,1736093498707,-3359.4,0.0001178,2]
[347752792,1736093498716,-1088.73,0.0001178,2]
[347752793,1736093498727,-844.34,0.0001178,2]
[347752794,1736093498736,-4575.44,0.0001178,2]
[347752795,1736093498746,-524.21,0.0001178,2]
[347752796,1736093498755,-1166.37,0.0001178,2]
[347752797,1736093498765,-502.97,0.0001178,2]
[347752798,1736093498775,-2102.36,0.0001178,2]
[347752799,1736093498785,-500.0,0.0001178,2]
[347752800,1736093498793,-1494.76,0.0001178,2]
[347752801,1736093498803,-1697.98,0.0001178,2]
[347752802,1736093498813,-707.61,0.0001178,2]
[347752803,1736093498822,-2476.3,0.0001178,2]
[347752804,1736093498832,-1004.07,0.0001178,2]
[347752805,1736093498841,-540.89,0.0001178,2]
[347752806,1736093498852,-994.13,0.0001178,2]
[347752807,1736093498862,-500.0,0.0001178,2]
[347752808,1736093498871,-936.98,0.0001178,2]
[347752809,1736093498880,-2758.22,0.0001178,2]
[347752810,1736093498891,-714.43,0.0001178,2]
[347752811,1736093498901,-638.23,0.0001178,2]
[347752812,1736093498911,-4018.14,0.0001178,2]
[347752813,1736093498922,-579.85,0.0001178,2]
[347752814,1736093498934,-500.0,0.0001178,2]
[347752815,1736093498943,-554.81,0.0001178,2]
[347752816,1736093498953,-768.81,0.0001178,2]
[347752817,1736093498963,-576.42,0.0001178,2]
[347752818,1736093498972,-1663.25,0.0001178,2]
[347752819,1736093498983,-500.0,0.0001178,2]
[347752820,1736093498993,-972.86,0.0001178,2]
[347752821,1736093499003,-870.76,0.0001178,2]
[347752822,1736093499013,-500.0,0.0001178,2]
[347752823,1736093499025,-3514.34,0.0001178,2]
[347752824,1736093499035,-626.28,0.0001178,2]
[347752825,1736093499045,-1177.81,0.0001178,2]
[347752826,1736093499054,-1212.28,0.0001178,2]
[347752827,1736093499066,-928.76,0.0001178,2]
[347752828,1736093499075,-1032.98,0.0001178,2]
[347752829,1736093499085,-807.78,0.0001178,2]
[347752830,1736093499095,-569.16,0.0001178,2]
[347752831,1736093499105,-586.44,0.0001178,2]
[347752832,1736093499115,-647.44,0.0001178,2]
[347752833,1736093499124,-625.48,0.0001178,2]
[347752834,1736093499134,-2820.24,0.0001178,2]
[347752835,1736093499144,-1463.16,0.0001178,2]
[347752836,1736093499154,-758.75,0.0001178,2]
[347752837,1736093499164,-2335.63,0.0001178,2]
[347752838,1736093499173,-2129.06,0.0001178,2]
[347752839,1736093499182,-931.19,0.0001178,2]
[347752840,1736093499192,-7531.06,0.0001178,2]
[347752841,1736093499203,-803.93,0.0001178,2]
[347752842,1736093499213,-917.79,0.0001178,2]
[347752843,1736093499223,-1840.4,0.0001178,2]
[347752844,1736093499233,-1119.32,0.0001178,2]
[347752845,1736093499243,-500.0,0.0001178,2]
[347752846,1736093499253,-706.11,0.0001178,2]
[347752847,1736093499262,-150.0,0.00011784,2]
[347752848,1736093499272,-150.0,0.00011788,2]
[347752849,1736093499282,-150.0,0.00011798,2]
[347752850,1736093499291,-200.0,0.000118,2]
[347752851,1736093499301,-5000.0,0.000118,2]
[347752852,1736093499313,-5000.0,0.000118,2]
[347752853,1736093499322,-150.0,0.00011811,2]
[347752854,1736093499332,-1300.0,0.00011812,2]
[347752855,1736093499342,-152.429211,0.00011818,2]
[347752856,1736093499351,-150.0,0.00011826,2]
[347752857,1736093499362,-150.0,0.00011827,2]
[347752858,1736093499372,-200.0,0.0001183,2]
[347752859,1736093499382,-1500.0,0.00011831,2]
[347752860,1736093499392,-194.05,0.00011837,2]
[347752861,1736093499402,-217268.42,0.00011861,3]
[347752862,1736093499411,-46951.85,0.00011861,3]
[347752863,1736093499421,-1057.0,0.00011862,2]
[347752864,1736093499431,-167.0,0.00011864,2]
[347752865,1736093499441,-1000.0,0.00011899,2]
[347752866,1736093499452,-5004.0,0.000119,2]
[347752867,1736093499463,-2208.0,0.000119,2]
[347752868,1736093499472,-150.0,0.00011901,2]
[347752869,1736093499482,-1500.0,0.00011902,2]
[347752870,1736093499492,-150.0,0.00011925,2]
[347752871,1736093499503,-150.0,0.00011947,2]
[347752872,1736093499513,-150.0,0.00011952,2]
[347752873,1736093499524,-150.0,0.00011953,2]
[347752874,1736093499535,-150.0,0.00011967,2]
[347752875,1736093499544,-20862.58344551,0.0001197,4]
[347752876,1736093499553,-150.0,0.00011974,2]
[347752877,1736093499563,-150.0,0.00011977,2]
[347752878,1736093499575,-150.0,0.00011978,2]
[347752879,1736093499586,-3893.0,0.00011985,2]
[347752880,1736093499595,-150.0,0.00011985,2]
[347752881,1736093499605,-1173.0,0.00011985,2]
[347752882,1736093499615,-9608.0,0.00011985,2]
[347752883,1736093499625,-5800.0,0.00011991,2]
[347752884,1736093499635,-150.0,0.00011993,2]
[347752885,1736093499646,-5800.0,0.00011998,2]
[347752886,1736093499655,-5800.0,0.00011999,2]
[347752887,1736093499665,-150.0,0.00011999,2]
[347752888,1736093499674,-30055.72067286,0.00012,3]
[347752889,1736093499684,-609.55,0.00012,5]
[347752890,1736093499694,-2078.0,0.00012,2]
[347752891,1736093499704,-120000.0,0.00012,6]
[347752892,1736093499714,-5007.0,0.00012,3]
[347752893,1736093499723,-31404.79813622,0.00012,3]
[347752894,1736093499732,-10059.95235873,0.00012,2]
[347752895,1736093499742,-2830.5,0.00012,2]
[347752896,1736093499752,-150.0,0.00012,2]
[347752897,1736093499762,-202.7,0.00012,2]
[347752898,1736093499773,-5800.0,0.00012007,2]
[347752899,1736093499782,-150.0,0.0001201,2]
[347752900,1736093499792,-5800.0,0.00012015,2]
[347752901,1736093499802,-150.0,0.00012017,2]
[347752902,1736093499812,-150.0,0.00012018,2]
[347752903,1736093499822,-5800.0,0.00012023,2]
[347752904,1736093499831,-150.0,0.00012025,2]
[347752905,1736093499842,-150.0,0.00012028,2]
[347752906,1736093499851,-5800.0,0.00012032,2]
[347752907,1736093499860,-5800.0,0.00012041,2]
[347752908,1736093499870,-150.0,0.00012046,2]
[347752909,1736093499879,-933.54775147,0.00012047,2]
[347752910,1736093499890,-5800.0,0.00012049,2]
[347752911,1736093499899,-150.0,0.0001205,2]
[347752912,1736093499908,-150.0,0.0001205,2]
[347752913,1736093499917,-500.0,0.00012054,2]
[347752914,1736093499927,-500.0,0.00012054,2]
[347752915,1736093499935,-518.61,0.00012054,2]
[347752916,1736093499945,-1944.31,0.00012054,2]
[347752917,1736093499954,-500.0,0.00012054,2]
[347752918,1736093499964,-500.0,0.00012054,2]
[347752919,1736093499975,-469.23164186,0.00012054,2]
[347752920,1736093499984,-513.01,0.00012054,2]
[347752921,1736093499994,-1116.95,0.00012054,2]
[347752922,1736093500003,-647.32,0.00012054,2]
[347752923,1736093500012,-1247.07,0.00012054,2]
[347752924,1736093500022,-710.57,0.00012054,2]
[347752925,1736093500032,-2074.96,0.00012054,2]
[347752926,1736093500041,-500.0,0.00012054,2]
[347752927,1736093500050,-1942.88,0.00012054,2]
[347752928,1736093500059,-500.0,0.00012054,2]
[347752929,1736093500069,-582.62,0.00012054,2]
[347752930,1736093500078,-5066.49,0.00012054,2]
[347752931,1736093500087,-1196.95,0.00012054,2]
[347752932,1736093500096,-651.13,0.00012054,2]
[347752933,1736093500107,-500.0,0.00012054,2]
[347752934,1736093500116,-1012.85,0.00012054,2]
[347752935,1736093500127,-511.08,0.00012054,2]
[347752936,1736093500137,-766.4,0.00012054,2]
[347752937,1736093500148,-162.382441,0.00012054,2]
[347752938,1736093500158,-1917.18,0.00012054,2]
[347752939,1736093500167,-500.0,0.00012054,2]
[347752940,1736093500178,-751.14,0.00012054,2]
[347752941,1736093500189,-500.0,0.00012054,2]
[347752942,1736093500201,-952.56,0.00012054,2]
[347752943,1736093500210,-754.41,0.00012054,2]
[347752944,1736093500220,-886.39,0.00012054,2]
[347752945,1736093500231,-500.0,0.00012054,2]
[347752946,1736093500241,-1737.28,0.00012054,2]
[347752947,1736093500250,-500.0,0.00012054,2]
[347752948,1736093500259,-526.36,0.00012054,2]
[347752949,1736093500269,-737.15,0.00012054,2]
[347752950,1736093500279,-500.0,0.00012054,2]
[347752951,1736093500290,-500.0,0.00012054,2]
[347752952,1736093500300,-3524.74,0.00012054,2]
[347752953,1736093500309,-761.43,0.00012054,2]
[347752954,1736093500319,-500.0,0.00012054,2]
[347752955,1736093500328,-500.0,0.00012054,2]
[347752956,1736093500339,-642.49,0.00012054,2]
[347752957,1736093500348,-562.21,0.00012054,2]
[347752958,1736093500359,-735.44,0.00012054,2]
[347752959,1736093500369,-500.0,0.00012054,2]
[347752960,1736093500380,-500.0,0.00012054,2]
[347752961,1736093500389,-546.34,0.00012054,2]
[347752962,1736093500399,-3187.24,0.00012054,2]
[347752963,1736093500409,-520.15,0.00012054,2]
[347752964,1736093500420,-882.75,0.00012054,2]
[347752965,1736093500429,-649.07,0.00012054,2]
[347752966,1736093500439,-844.88,0.00012054,2]
[347752967,1736093500449,-774.09,0.00012054,2]
[347752968,1736093500458,-500.0,0.00012054,2]
[347752969,1736093500468,-2003.22,0.00012054,2]
[347752970,1736093500478,-528.73,0.00012054,2]
[347752971,1736093500488,-852.93,0.00012054,2]
[347752972,1736093500502,-500.0,0.00012054,2]
[347752973,1736093500512,-810.2,0.00012054,2]
[347752974,1736093500522,-829.01,0.00012054,2]
[347752975,1736093500531,-531.05,0.00012054,2]
[347752976,1736093500542,-682.3,0.00012054,2]
[347752977,1736093500551,-549.67,0.00012054,2]
[347752978,1736093500561,-2055.76,0.00012054,2]
[347752979,1736093500572,-543.01,0.00012054,2]
[347752980,1736093500581,-500.0,0.00012054,2]
[347752981,1736093500591,-500.0,0.00012054,2]
[347752982,1736093500601,-500.0,0.00012054,2]
[347752983,1736093500611,-715.52,0.00012054,2]
[347752984,1736093500620,-608.96,0.00012054,2]
[347752985,1736093500629,-2363.08,0.00012054,2]
[347752986,1736093500638,-500.0,0.00012054,2]
[347752987,1736093500648,-511.54,0.00012054,2]
[347752988,1736093500658,-816.37,0.00012054,2]
[347752989,1736093500667,-547.7,0.00012054,2]
[347752990,1736093500676,-710.61,0.00012054,2]
[347752991,1736093500686,-2036.65,0.00012054,2]
[347752992,1736093500696,-1095.6,0.00012054,2]
[347752993,1736093500705,-540.03,0.00012054,2]
[347752994,1736093500715,-587.66,0.00012054,2]
[347752995,1736093500725,-500.0,0.00012054,2]
[347752996,1736093500735,-946.46,0.00012054,2]
[347752997,1736093500744,-560.43,0.00012054,2]
[347752998,1736093500753,-500.0,0.00012054,2]
[347752999,1736093500938,-777.09,0.00012054,2]
[347753000,1736093500950,-584.75,0.00012054,2]
[347753001,1736093500959,-278.47070538,0.00012054,2]
[347753002,1736093500969,-248.89,0.00012054,2]
[347753003,1736093500978,-500.0,0.00012054,2]
[347753004,1736093500988,-660.74,0.00012054,2]
[347753005,1736093500998,-836.67,0.00012054,2]
[347753006,1736093501008,-3034.01,0.00012054,2]
[347753007,1736093501018,-645.35,0.00012054,2]
[347753008,1736093501027,-1046.1,0.00012054,2]
[347753009,1736093501036,-941.56,0.00012054,2]
[347753010,1736093501046,-500.0,0.00012054,2]
[347753011,1736093501055,-3701.46,0.00012054,2]
[347753012,1736093501065,-568.91,0.00012054,2]
[347753013,1736093501074,-833.84,0.00012054,2]
[347753014,1736093501084,-820.61,0.00012054,2]
[347753015,1736093501094,-582.64,0.00012054,2]
[347753016,1736093501103,-621.13,0.00012054,2]
[347753017,1736093501113,-501.63,0.00012054,2]
[347753018,1736093501123,-615.11,0.00012054,2]
[347753019,1736093501132,-649.76,0.00012054,2]
[347753020,1736093501142,-500.0,0.00012054,2]
[347753021,1736093501152,-868.56,0.00012054,2]
[347753022,1736093501161,-1688.62,0.00012054,2]
[347753023,1736093501171,-1145.74,0.00012054,2]
[347753024,1736093501181,-525.35,0.00012054,2]
[347753025,1736093501190,-3762.06,0.00012054,2]
[347753026,1736093501200,-574.53,0.00012054,2]
[347753027,1736093501211,-500.0,0.00012054,2]
[347753028,1736093501221,-702.61,0.00012054,2]
[347753029,1736093501231,-553.77,0.00012054,2]
[347753030,1736093501240,-898.96,0.00012054,2]
[347753031,1736093501250,-1387.22,0.00012054,2]
[347753032,1736093501259,-574.79,0.00012054,2]
[347753033,1736093501269,-549.17,0.00012054,2]
[347753034,1736093501279,-729.47,0.00012054,2]
[347753035,1736093501288,-910.32,0.00012054,2]
[347753036,1736093501297,-500.0,0.00012054,2]
[347753037,1736093501307,-500.0,0.00012054,2]
[347753038,1736093501317,-527.29,0.00012054,2]
[347753039,1736093501326,-500.0,0.00012054,2]
[347753040,1736093501335,-970.62,0.00012054,2]
[347753041,1736093501345,-500.0,0.00012054,2]
[347753042,1736093501355,-676.38,0.00012054,2]
[347753043,1736093501365,-879.45,0.00012054,2]
[347753044,1736093501375,-504.21,0.00012054,2]
[347753045,1736093501385,-652.07,0.00012054,2]
[347753046,1736093501394,-919.5,0.00012054,2]
[347753047,1736093501403,-701.89,0.00012054,2]
[347753048,1736093501413,-500.0,0.00012054,2]
[347753049,1736093501423,-899.28,0.00012054,2]
[347753050,1736093501433,-605.08,0.00012054,2]
[347753051,1736093501443,-878.43,0.00012054,2]
[347753052,1736093501453,-500.0,0.00012054,2]
[347753053,1736093501464,-676.02,0.00012054,2]
[347753054,1736093501474,-767.55,0.00012054,2]
[347753055,1736093501483,-853.53,0.00012054,2]
[347753056,1736093501495,-867.42,0.00012054,2]
[347753057,1736093501506,-1210.23,0.00012054,2]
[347753058,1736093501515,-500.0,0.00012054,2]
[347753059,1736093501526,-500.0,0.00012054,2]
[347753060,1736093501538,-1086.36,0.00012054,2]
[347753061,1736093501548,-705.93,0.00012054,2]
[347753062,1736093501558,-500.0,0.00012054,2]
[347753063,1736093501568,-914.97,0.00012054,2]
[347753064,1736093501579,-675.73,0.00012054,2]
[347753065,1736093501590,-672.42,0.00012054,2]
[347753066,1736093501600,-727.18,0.00012054,2]
[347753067,1736093501611,-567.84,0.00012054,2]
[347753068,1736093501620,-500.0,0.00012054,2]
[347753069,1736093501631,-552.49,0.00012054,2]
[347753070,1736093501641,-764.16,0.00012054,2]
[347753071,1736093501650,-1325.59,0.00012054,2]
[347753072,1736093501660,-543.8,0.00012054,2]
[347753073,1736093501670,-681.31,0.00012054,2]
[347753074,1736093501680,-643.31,0.00012054,2]
[347753075,1736093501690,-1100.99,0.00012054,2]
[347753076,1736093501702,-554.91,0.00012054,2]
[347753077,1736093501712,-572.41,0.00012054,2]
[347753078,1736093501722,-980.48,0.00012054,2]
[347753079,1736093501731,-578.15,0.00012054,2]
[347753080,1736093501740,-631.99,0.00012054,2]
[347753081,1736093501750,-1267.42,0.00012054,2]
[347753082,1736093501760,-680.55,0.00012054,2]
[347753083,1736093501769,-906.26,0.00012054,2]
[347753084,1736093501780,-3974.11,0.00012054,2]
[347753085,1736093501790,-500.0,0.00012054,2]
[347753086,1736093501799,-500.0,0.00012054,2]
[347753087,1736093501808,-809.64,0.00012054,2]
[347753088,1736093501818,-1573.57,0.00012054,2]
[347753089,1736093501827,-703.17,0.00012054,2]
[347753090,1736093501837,-500.0,0.00012054,2]
[347753091,1736093501846,-591.69,0.00012054,2]
[347753092,1736093501856,-1135.97,0.00012054,2]
[347753093,1736093501866,-520.01,0.00012054,2]
[347753094,1736093501875,-1452.66,0.00012054,2]
[347753095,1736093501885,-602.76,0.00012054,2]
[347753096,1736093501897,-1808.46,0.00012054,2]
[347753097,1736093501907,-833.46,0.00012054,2]
[347753098,1736093501917,-618.53,0.00012054,2]
[347753099,1736093501927,-651.97,0.00012054,2]
[347753100,1736093501936,-911.74,0.00012054,2]
[347753101,1736093501946,-568.0,0.00012054,2]
[347753102,1736093501955,-1028.15,0.00012054,2]
[347753103,1736093501966,-721.89,0.00012054,2]
[347753104,1736093501975,-1575.34,0.00012054,2]
[347753105,1736093501985,-633.58,0.00012054,2]
[347753106,1736093501994,-500.0,0.00012054,2]
[347753107,1736093502004,-1378.57,0.00012054,2]
[347753108,1736093502014,-500.0,0.00012054,2]
[347753109,1736093502025,-790.0,0.00012054,2]
[347753110,1736093502034,-3107.24,0.00012054,2]
[347753111,1736093502045,-675.6,0.00012054,2]
[347753112,1736093502055,-747.11,0.00012054,2]
[347753113,1736093502066,-1312.45,0.00012054,2]
[347753114,1736093502076,-2431.88,0.00012054,2]
[347753115,1736093502087,-660.9,0.00012054,2]
[347753116,1736093502097,-741.89,0.00012054,2]
[347753117,1736093502106,-500.0,0.00012054,2]
[347753118,1736093502117,-998.2,0.00012054,2]
[347753119,1736093502128,-742.57,0.00012054,2]
[347753120,1736093502138,-950.19,0.00012054,2]
[347753121,1736093502149,-1502.24,0.00012054,2]
[347753122,1736093502159,-775.67,0.00012054,2]
[347753123,1736093502169,-1529.57,0.00012054,2]
[347753124,1736093502178,-829.09,0.00012054,2]
[347753125,1736093502188,-545.49,0.00012054,2]
[347753126,1736093502196,-851.4,0.00012054,2]
[347753127,1736093502206,-643.9,0.00012054,2]
[347753128,1736093502215,-596.39,0.00012054,2]
[347753129,1736093502227,-2401.07,0.00012054,2]
[347753130,1736093502237,-1972.78,0.00012054,2]
[347753131,1736093502247,-500.0,0.00012054,2]
[347753132,1736093502257,-7216.14,0.00012054,2]
[347753133,1736093502266,-4809.85,0.00012054,2]
[347753134,1736093502275,-664.2,0.00012054,2]
[347753135,1736093502285,-1336.17,0.00012054,2]
[347753136,1736093502295,-2680.26,0.00012054,2]
[347753137,1736093502305,-4510.33,0.00012054,2]
[347753138,1736093502315,-897.44,0.00012054,2]
[347753139,1736093502325,-514.62,0.00012054,2]
[347753140,1736093502335,-863.94,0.00012054,2]
[347753141,1736093502344,-845.14,0.00012054,2]
[347753142,1736093502354,-2020.86,0.00012054,2]
[347753143,1736093502363,-1165.06,0.00012054,2]
[347753144,1736093502372,-898.28,0.00012054,2]
[347753145,1736093502382,-682.97,0.00012054,2]
[347753146,1736093502391,-4822.3,0.00012054,2]
[347753147,1736093502401,-820.85,0.00012054,2]
[347753148,1736093502410,-730.9,0.00012054,2]
[347753149,1736093502420,-2567.67,0.00012054,2]
[347753150,1736093502429,-905.94,0.00012054,2]
[347753151,1736093502439,-1978.57,0.00012054,2]
[347753152,1736093502449,-924.98,0.00012054,2]
[347753153,1736093502459,-730.86,0.00012054,2]
[347753154,1736093502469,-1891.01,0.00012054,2]
[347753155,1736093502479,-923.16,0.00012054,2]
[347753156,1736093502489,-1979.73,0.00012054,2]
[347753157,1736093502501,-1008.74,0.00012054,2]
[347753158,1736093502511,-5323.99,0.00012054,2]
[347753159,1736093502520,-654.82,0.00012054,2]
[347753160,1736093502530,-634.71,0.00012054,2]
[347753161,1736093502540,-910.23,0.00012054,2]
[347753162,1736093502549,-599.32,0.00012054,2]
[347753163,1736093502559,-1030.31,0.00012054,2]
[347753164,1736093502568,-6129.68,0.00012054,2]
[347753165,1736093502579,-3801.67,0.00012054,2]
[347753166,1736093502590,-500.0,0.00012054,2]
[347753167,1736093502599,-1038.71,0.00012054,2]
[347753168,1736093502608,-2739.97,0.00012054,2]
[347753169,1736093502618,-2105.78,0.00012054,2]
[347753170,1736093502629,-1877.63,0.00012054,2]
[347753171,1736093502639,-1306.48,0.00012054,2]
[347753172,1736093502648,-700.64,0.00012054,2]
[347753173,1736093502659,-1166.76,0.00012054,2]
[347753174,1736093502670,-3359.4,0.00012054,2]
[347753175,1736093502680,-1088.73,0.00012054,2]
[347753176,1736093502690,-844.34,0.00012054,2]
[347753177,1736093502699,-4575.44,0.00012054,2]
[347753178,1736093502709,-524.21,0.00012054,2]
[347753179,1736093502719,-502.97,0.00012054,2]
[347753180,1736093502729,-2102.36,0.00012054,2]
[347753181,1736093502740,-1166.37,0.00012054,2]